fUST/lending_fUST_20240705
["ID","MTS","AMOUNT","RATE_DAILY","PERIOD"]
[331271417,1720169443208,-664.59310376,0.00035,30]
[331271418,1720169443217,-151.28032846,0.00035485,7]
[331271419,1720169443231,-325.94981118,0.00035581,4]
[331271420,1720169443241,-164.350066,0.00035582,2]
[331271422,1720169443250,-9785.56751519,0.00035606,4]
[331271423,1720169443260,-9097.49,0.00035616,3]
[331271424,1720169443271,-7581.24,0.00035616,3]
[331271425,1720169443280,-6317.7,0.00035616,3]
[331271426,1720169443290,-151.28032846,0.0003581,7]
[331271428,1720169443300,-156.25095608,0.00036035,7]
[331271429,1720169443311,-157.92637929,0.00036365,7]
[331271430,1720169443321,-154.83299546,0.00037,4]
[331271431,1720169443331,-150.13997887,0.00037347,7]
[331271433,1720169443343,-151.28032846,0.00037436,7]
[331271434,1720169443352,-150.13997887,0.0003788,7]
[331271435,1720169443361,-1529.33100504,0.00037955,2]
[331271436,1720169443371,-23892.12652259,0.00038,30]
[331271437,1720169443380,-379.04509844,0.00038,120]
[331271439,1720169443389,-150.30016482,0.00038515,7]
[331271440,1720169443399,-150.30016482,0.00038764,7]
[331271441,1720169443409,-1000.0,0.00039,39]
[331271442,1720169443419,-154.80649189,0.000392,10]
[331271443,1720169443428,-216.032254,0.00039394,2]
[331271445,1720169443438,-156.25095608,0.0003969,7]
[331271446,1720169443447,-3990.00210664,0.0003999,4]
[331271448,1720169443457,-19571.1350304,0.0003999,5]
[331271450,1720169443466,-539.46535418,0.00039994,4]
[331271451,1720169443475,-22995.03952073,0.0004,120]
[331271453,1720169443485,-151.0,0.0004,120]
[331271454,1720169443494,-25380.23808094,0.0004,120]
[331271455,1720169443503,-30409.38165568,0.0004,30]
[331271456,1720169443512,-151.0,0.0004,120]
[331271457,1720169443522,-151.28032846,0.00040113,30]
[331271459,1720169443531,-151.28032846,0.00040121,30]
[331271460,1720169443540,-8823.13575589,0.00041,30]
[331271461,1720169443550,-293.01727503,0.00041095,4]
[331271462,1720169443560,-978.04,0.00041095,30]
[331271463,1720169443569,-151.0,0.00041616,120]
[331271465,1720169443579,-150.13997887,0.00041856,30]
[331271466,1720169443590,-156.25095608,0.00041919,30]
[331271467,1720169443599,-400.34319174,0.00041941,4]
[331271468,1720169443610,-268.8794469,0.000425,30]
[331271469,1720169443619,-151.0,0.0004263,120]
[331271471,1720169443629,-164.350066,0.00042825,2]
[331271472,1720169443638,-157.92637929,0.00042981,30]
[331271473,1720169443648,-151.0,0.00043233,120]
[331271474,1720169443658,-150.13997887,0.00043755,30]
[331271475,1720169443669,-3809.2136136,0.000438,60]
[331271477,1720169443678,-157.92637929,0.00043951,30]
[331271478,1720169443689,-151.0,0.00044849,120]
[331271479,1720169443698,-156.25095608,0.00044953,30]
[331271480,1720169443709,-19571.1350304,0.0004499,5]
[331271482,1720169443718,-59182.13022081,0.00045,120]
[331271483,1720169443728,-1529.33100504,0.0004516,2]
[331271484,1720169443737,-151.0,0.0004526,120]
[331271485,1720169443747,-216.032254,0.00045494,2]
[331271486,1720169443756,-151.28032846,0.00045644,30]
[331271491,1720169443765,-157.92637929,0.00045812,30]
[331271494,1720169443774,-39142.2700608,0.0004599,5]
[331271499,1720169443788,-10000.0,0.00046,46]
[331271501,1720169443798,-208198.45584594,0.00046,60]
[331271503,1720169443807,-151.0,0.00046,14]
[331271504,1720169443817,-193.58254,0.00046,14]
[331271505,1720169443826,-193.58254,0.00046,14]
[331271507,1720169443840,-151.0,0.00046,14]
[331271509,1720169443850,-151.0,0.00046,14]
[331271511,1720169443859,-151.0,0.00046,14]
[331271512,1720169443869,-151.0,0.00046,14]
[331271513,1720169443879,-151.0,0.00046,14]
[331271514,1720169443889,-151.0,0.00046,14]
[331271516,1720169443899,-329.351682,0.00046,14]
[331271517,1720169443908,-329.351682,0.00046,14]
[331271518,1720169443918,-151.0,0.00046,14]
[331271519,1720169443928,-151.0,0.00046,14]
[331271520,1720169443937,-248.834709,0.00046,14]
[331271522,1720169443947,-248.834709,0.00046,14]
[331271523,1720169443956,-151.0,0.00046,14]
[331271524,1720169443966,-224.230914,0.00046,14]
[331271525,1720169443975,-228.341063,0.00046,14]
[331271526,1720169443985,-224.230914,0.00046,14]
[331271528,1720169443996,-408.924018,0.00046,14]
[331271529,1720169444006,-408.924018,0.00046,14]
[331271530,1720169444016,-151.0,0.00046,14]
[331271531,1720169444026,-151.0,0.00046,14]
[331271532,1720169444036,-623.11533,0.00046,14]
[331271534,1720169444046,-623.11533,0.00046,14]
[331271535,1720169444056,-892.235045,0.00046,14]
[331271536,1720169444066,-151.0,0.00046,14]
[331271537,1720169444076,-892.235045,0.00046,14]
[331271538,1720169444086,-151.0,0.00046,14]
[331271540,1720169444098,-830.089134,0.00046,14]
[331271541,1720169444108,-151.0,0.00046,14]
[331271542,1720169444117,-830.089134,0.00046,14]
[331271543,1720169444126,-198.302613,0.00046,14]
[331271544,1720169444136,-198.302613,0.00046,14]
[331271546,1720169444146,-2292.991071,0.00046,14]
[331271549,1720169444259,-2292.991071,0.00046,14]
[331271550,1720169444269,-151.0,0.00046,14]
[331271551,1720169444279,-162.89436,0.00046,14]
[331271552,1720169444289,-151.0,0.00046,14]
[331271553,1720169444298,-151.0,0.00046,14]
[331271554,1720169444311,-310.0,0.00046,30]
[331271555,1720169444320,-310.0,0.00046,30]
[331271557,1720169444330,-310.0,0.00046,30]
[331271558,1720169444341,-310.0,0.00046,30]
[331271559,1720169444351,-446.822796,0.00046,30]
[331271560,1720169444361,-151.0,0.00046,14]
[331271561,1720169444371,-151.0,0.00046,14]
[331271563,1720169444380,-159.2983416,0.00046308,30]
[331271564,1720169444390,-151.0,0.00046466,120]
[331271565,1720169444400,-167.0,0.00046849,90]
[331271566,1720169444410,-10000.0,0.00047,47]
[331271567,1720169444420,-1499.999999,0.00047,7]
[331271568,1720169444430,-167.0,0.00047,90]
[331271570,1720169444440,-157.92637929,0.00047245,30]
[331271571,1720169444451,-151.0,0.0004789,120]
[331271572,1720169444460,-151.28032855,0.00047891,30]
[331271573,1720169444470,-1000.0,0.00047945,120]
[331271574,1720169444480,-150.13997887,0.00047962,30]
[331271576,1720169444490,-150.13997887,0.00047994,30]
[331271577,1720169444499,-10000.0,0.00048,48]
[331271578,1720169444510,-4999.91,0.00048,30]
[331271579,1720169444520,-4000.0,0.00048,120]
[331271580,1720169444529,-395.39220748,0.00048,30]
[331271582,1720169444539,-151.0,0.00048082,120]
[331271583,1720169444549,-9785.56751519,0.00048388,6]
[331271584,1720169444559,-14750.92089144,0.00048398,8]
[331271585,1720169444568,-1000.0,0.00048493,120]
[331271586,1720169444577,-471.308748,0.000486,120]
[331271588,1720169444587,-165.722,0.00048736,2]
[331271589,1720169444598,-877.0,0.00048736,2]
[331271590,1720169444608,-150.5,0.0004877,62]
[331271591,1720169444618,-150.5,0.0004878,62]
[331271592,1720169444627,-150.5,0.0004879,62]
[331271594,1720169444637,-42894.27588912,0.00048798,2]
[331271595,1720169444646,-24653.07650755,0.000488,61]
[331271596,1720169444656,-26103.91081812,0.000488,90]
[331271597,1720169444666,-151.0,0.000488,14]
[331271598,1720169444677,-151.0,0.000488,14]
[331271600,1720169444687,-217.625404,0.000488,14]
[331271601,1720169444697,-151.22207,0.000488,14]
[331271602,1720169444707,-153.0,0.00048904,2]
[331271603,1720169444717,-153.0,0.00048904,2]
[331271604,1720169444727,-167.0,0.00048904,90]
[331271606,1720169444737,-20000.0,0.0004895,120]
[331271607,1720169444747,-10000.0,0.00049,49]
[331271608,1720169444758,-10255.0,0.00049,30]
[331271609,1720169444767,-2987.92375371,0.00049,120]
[331271610,1720169444779,-1000.0,0.00049041,120]
[331271612,1720169444790,-150.348361,0.00049042,2]
[331271613,1720169444800,-241.0547,0.00049153,2]
[331271614,1720169444810,-163.0,0.00049288,120]
[331271615,1720169444819,-163.0,0.00049288,120]
[331271616,1720169444830,-163.0,0.00049288,120]
[331271618,1720169444840,-163.0,0.00049288,120]
[331271619,1720169444851,-163.0,0.00049288,120]
[331271620,1720169444860,-163.0,0.00049288,120]
[331271621,1720169444869,-163.0,0.00049288,120]
[331271622,1720169444878,-163.0,0.00049288,120]
[331271624,1720169444892,-163.0,0.00049288,120]
[331271625,1720169444902,-163.0,0.00049288,120]
[331271626,1720169444912,-163.0,0.00049288,120]
[331271627,1720169444922,-163.0,0.00049288,120]
[331271629,1720169444934,-153.0,0.00049288,120]
[331271630,1720169444944,-163.0,0.00049288,120]
[331271631,1720169444954,-163.0,0.00049288,120]
[331271632,1720169444964,-163.0,0.00049288,120]
[331271633,1720169444973,-163.0,0.00049288,120]
[331271635,1720169444983,-163.0,0.00049288,120]
[331271636,1720169444992,-163.0,0.00049288,120]
[331271637,1720169445001,-163.0,0.00049288,120]
[331271638,1720169445011,-163.0,0.00049288,120]
[331271640,1720169445020,-163.0,0.00049288,120]
[331271643,1720169445030,-163.0,0.00049288,120]
[331271645,1720169445039,-163.0,0.00049288,120]
[331271647,1720169445048,-163.0,0.00049288,120]
[331271649,1720169445060,-163.0,0.00049288,120]
[331271650,1720169445069,-163.0,0.00049288,120]
[331271652,1720169445079,-153.0,0.00049288,120]
[331271653,1720169445090,-163.0,0.00049288,120]
[331271654,1720169445100,-163.0,0.00049288,120]
[331271655,1720169445109,-163.0,0.00049288,120]
[331271656,1720169445118,-163.0,0.00049288,120]
[331271658,1720169445128,-163.0,0.00049288,120]
[331271659,1720169445137,-163.0,0.00049288,120]
[331271660,1720169445146,-163.0,0.00049288,120]
[331271661,1720169445156,-163.0,0.00049288,120]
[331271662,1720169445165,-163.0,0.00049288,120]
[331271664,1720169445174,-163.0,0.00049288,120]
[331271665,1720169445186,-163.0,0.00049288,120]
[331271666,1720169445196,-163.0,0.00049288,120]
[331271667,1720169445205,-163.0,0.00049288,120]
[331271668,1720169445215,-163.0,0.00049288,120]
[331271670,1720169445225,-153.0,0.00049288,120]
[331271671,1720169445238,-163.0,0.00049288,120]
[331271672,1720169445248,-163.0,0.00049288,120]
[331271673,1720169445258,-163.0,0.00049288,120]
[331271674,1720169445268,-163.0,0.00049288,120]
[331271676,1720169445278,-163.0,0.00049288,120]
[331271677,1720169445288,-163.0,0.00049288,120]
[331271678,1720169445298,-163.0,0.00049288,120]
[331271679,1720169445307,-163.0,0.00049288,120]
[331271680,1720169445318,-163.0,0.00049288,120]
[331271682,1720169445327,-163.0,0.00049288,120]
[331271683,1720169445336,-163.0,0.00049288,120]
[331271684,1720169445347,-163.0,0.00049288,120]
[331271685,1720169445357,-163.0,0.00049288,120]
[331271686,1720169445366,-163.0,0.00049288,120]
[331271688,1720169445375,-153.0,0.00049288,120]
[331271689,1720169445385,-163.0,0.00049288,120]
[331271690,1720169445394,-163.0,0.00049288,120]
[331271691,1720169445404,-163.0,0.00049288,120]
[331271693,1720169445413,-163.0,0.00049288,120]
[331271694,1720169445423,-163.0,0.00049288,120]
[331271695,1720169445432,-163.0,0.00049288,120]
[331271696,1720169445442,-163.0,0.00049288,120]
[331271697,1720169445451,-163.0,0.00049288,120]
[331271699,1720169445460,-163.0,0.00049288,120]
[331271700,1720169445470,-163.0,0.00049288,120]
[331271701,1720169445479,-163.0,0.00049288,120]
[331271702,1720169445488,-163.0,0.00049288,120]
[331271703,1720169445498,-163.0,0.00049288,120]
[331271705,1720169445507,-163.0,0.00049288,120]
[331271706,1720169445517,-153.0,0.00049288,120]
[331271707,1720169445526,-163.0,0.00049288,120]
[331271708,1720169445536,-163.0,0.00049288,120]
[331271709,1720169445545,-163.0,0.00049288,120]
[331271711,1720169445555,-163.0,0.00049288,120]
[331271712,1720169445563,-163.0,0.00049288,120]
[331271713,1720169445573,-163.0,0.00049288,120]
[331271714,1720169445582,-163.0,0.00049288,120]
[331271715,1720169445591,-163.0,0.00049288,120]
[331271717,1720169445601,-163.0,0.00049288,120]
[331271718,1720169445610,-163.0,0.00049288,120]
[331271719,1720169445619,-163.0,0.00049288,120]
[331271720,1720169445628,-163.0,0.00049288,120]
[331271721,1720169445637,-163.0,0.00049288,120]
[331271723,1720169445646,-163.0,0.00049288,120]
[331271724,1720169445655,-153.0,0.00049288,120]
[331271725,1720169445665,-224.230914,0.00049288,14]
[331271726,1720169445674,-224.230914,0.00049288,14]
[331271727,1720169445684,-408.924018,0.00049288,14]
[331271729,1720169445693,-408.924018,0.00049288,14]
[331271730,1720169445702,-151.0,0.00049288,14]
[331271731,1720169445711,-151.0,0.00049288,14]
[331271732,1720169445720,-623.11533,0.00049288,14]
[331271733,1720169445729,-623.11533,0.00049288,14]
[331271735,1720169445738,-892.235045,0.00049288,14]
[331271736,1720169445748,-892.235045,0.00049288,14]
[331271737,1720169445757,-151.0,0.00049288,14]
[331271738,1720169445768,-830.089134,0.00049288,14]
[331271739,1720169445778,-151.0,0.00049288,14]
[331271741,1720169445789,-830.089134,0.00049288,14]
[331271742,1720169445798,-198.302613,0.00049288,14]
[331271743,1720169445808,-198.302613,0.00049288,14]
[331271744,1720169445818,-2292.991071,0.00049288,14]
[331271746,1720169445827,-2292.991071,0.00049288,14]
[331271747,1720169445836,-151.0,0.00049288,14]
[331271748,1720169445847,-600.0,0.00049315,120]
[331271749,1720169445856,-400.0,0.00049315,120]
[331271750,1720169445866,-1050.08,0.00049315,120]
[331271751,1720169445875,-151.0,0.00049315,14]
[331271753,1720169445885,-151.0,0.00049315,14]
[331271754,1720169445895,-151.0,0.00049315,14]
[331271755,1720169445904,-151.0,0.00049315,14]
[331271756,1720169445914,-20000.0,0.0004935,120]
[331271758,1720169445924,-151.0,0.0004935,14]
[331271759,1720169445933,-151.0,0.0004935,14]
[331271760,1720169445943,-151.0,0.0004935,14]
[331271761,1720169445952,-329.351682,0.0004935,14]
[331271762,1720169445962,-329.351682,0.0004935,14]
[331271763,1720169445971,-151.0,0.0004935,14]
[331271765,1720169445981,-151.0,0.0004935,14]
[331271766,1720169445991,-247.052392,0.0004935,14]
[331271767,1720169446001,-248.834709,0.0004935,14]
[331271768,1720169446010,-248.834709,0.0004935,14]
[331271770,1720169446021,-151.0,0.0004935,14]
[331271771,1720169446030,-151.0,0.0004935,14]
[331271772,1720169446039,-225.420696,0.0004935,14]
[331271773,1720169446049,-151.0,0.0004935,14]
[331271774,1720169446059,-151.0,0.0004935,14]
[331271775,1720169446069,-150.13997893,0.00049541,30]
[331271777,1720169446078,-151.0,0.00049589,14]
[331271778,1720169446089,-151.0,0.00049589,14]
[331271779,1720169446101,-151.0,0.00049589,14]
[331271781,1720169446110,-151.0,0.00049589,14]
[331271783,1720169446120,-1050.08,0.00049589,120]
[331271785,1720169446131,-1000.0,0.00049589,120]
[331271786,1720169446141,-151.0,0.00049699,120]
[331271787,1720169446151,-1000.0,0.00049713,14]
[331271788,1720169446160,-1000.0,0.00049717,14]
[331271789,1720169446170,-1000.0,0.00049734,14]
[331271791,1720169446180,-151.0,0.00049734,14]
[331271792,1720169446190,-193.58254,0.00049734,14]
[331271793,1720169446200,-193.58254,0.00049734,14]
[331271794,1720169446210,-151.0,0.00049734,14]
[331271795,1720169446219,-151.0,0.00049734,14]
[331271797,1720169446229,-151.0,0.00049734,14]
[331271798,1720169446242,-1000.0,0.00049745,14]
[331271799,1720169446252,-12289.83,0.0004975,120]
[331271800,1720169446262,-2562.55930046,0.0004975,60]
[331271801,1720169446271,-306.030258,0.000498,27]
[331271803,1720169446283,-243.78,0.000498,120]
[331271804,1720169446292,-1000.0,0.00049812,14]
[331271805,1720169446302,-1004.40811603,0.00049822,14]
[331271806,1720169446312,-1000.0,0.00049836,14]
[331271807,1720169446323,-1050.08,0.00049863,120]
[331271811,1720169446333,-153.0,0.00049863,2]
[331271812,1720169446442,-153.0,0.00049863,2]
[331271813,1720169446452,-153.0,0.00049863,2]
[331271814,1720169446463,-153.6671116,0.00049863,2]
[331271815,1720169446474,-1000.0,0.00049864,14]
[331271817,1720169446485,-1000.0,0.00049867,14]
[331271818,1720169446494,-1051.72482245,0.00049889,14]
[331271819,1720169446504,-373.0,0.000499,27]
[331271820,1720169446514,-300.0,0.00049912,14]
[331271822,1720169446524,-1000.0,0.00049942,14]
[331271823,1720169446534,-1000.0,0.00049979,14]
[331271824,1720169446543,-301.34616125,0.00049984,14]
[331271825,1720169446553,-3500.0,0.00049998,120]
[331271826,1720169446563,-357.22695229,0.00049998,120]
[331271828,1720169446572,-10000.0,0.0005,50]
[331271829,1720169446582,-4999.999999,0.0005,30]
[331271830,1720169446592,-523.61998014,0.0005,120]
[331271831,1720169446602,-4308.03496036,0.0005,60]
[331271832,1720169446612,-154.80649189,0.0005,30]
[331271835,1720169446621,-500.0,0.0005,120]
[331271837,1720169446631,-300.0,0.0005,120]
[331271839,1720169446640,-283.0,0.0005,120]
[331271840,1720169446650,-164.350066,0.00050068,2]
[331271842,1720169446661,-1050.08,0.00050136,120]
[331271844,1720169446670,-1000.0,0.00050136,120]
[331271846,1720169446680,-307.2187865,0.00050137,2]
[331271847,1720169446689,-206.1408591,0.00050137,2]
[331271848,1720169446699,-153.0,0.00050137,2]
[331271849,1720169446708,-153.0,0.00050137,2]
[331271850,1720169446718,-206.1408591,0.00050137,2]
[331271852,1720169446728,-1050.08,0.0005041,120]
[331271853,1720169446738,-151.0,0.00050521,120]
[331271854,1720169446748,-595.0,0.000506,30]
[331271855,1720169446759,-1050.08,0.00050684,120]
[331271856,1720169446769,-1000.0,0.00050684,120]
[331271858,1720169446781,-156.25095608,0.00050815,60]
[331271859,1720169446791,-153.0,0.00050822,2]
[331271860,1720169446801,-1050.08,0.00050958,120]
[331271861,1720169446810,-153.0,0.00050959,2]
[331271862,1720169446820,-206.1408591,0.00050959,2]
[331271864,1720169446830,-206.1408591,0.00050959,2]
[331271865,1720169446839,-153.0,0.00050959,2]
[331271866,1720169446852,-305.4798635,0.00050959,2]
[331271867,1720169446862,-293.3096853,0.00050959,2]
[331271868,1720169446871,-293.3096853,0.00050959,2]
[331271869,1720169446880,-206.1408591,0.00050959,2]
[331271871,1720169446890,-293.3096853,0.00050959,2]
[331271872,1720169446901,-293.3096853,0.00050959,2]
[331271873,1720169446911,-452.7007641,0.00050959,2]
[331271874,1720169446920,-153.0,0.00050959,2]
[331271875,1720169446930,-440.9209018,0.00050959,2]
[331271877,1720169446940,-293.3096853,0.00050959,2]
[331271878,1720169446949,-293.3096853,0.00050959,2]
[331271879,1720169446960,-293.3096853,0.00050959,2]
[331271880,1720169446969,-293.3096853,0.00050959,2]
[331271881,1720169446979,-293.3096853,0.00050959,2]
[331271883,1720169446988,-293.3096853,0.00050959,2]
[331271884,1720169446998,-293.3096853,0.00050959,2]
[331271885,1720169447008,-293.3096853,0.00050959,2]
[331271886,1720169447017,-10000.0,0.00051,51]
[331271887,1720169447027,-5000.000001,0.00051,30]
[331271889,1720169447037,-3000.0,0.00051,85]
[331271890,1720169447046,-3000.0,0.0005101,85]
[331271891,1720169447056,-3000.0,0.0005102,85]
[331271892,1720169447066,-3000.0,0.0005103,85]
[331271893,1720169447076,-3000.0,0.0005104,85]
[331271895,1720169447085,-3000.0,0.0005105,85]
[331271896,1720169447097,-151.0,0.0005106,14]
[331271897,1720169447107,-3000.0,0.0005106,85]
[331271898,1720169447118,-3000.0,0.0005107,85]
[331271899,1720169447128,-4861.189662,0.0005108,85]
[331271901,1720169447138,-157.92637929,0.00051148,60]
[331271902,1720169447148,-661.51030762,0.00051232,120]
[331273661,1720170355182,-844.03530893,0.00014999,2]
[331273663,1720170355203,-588.68024058,0.00016154,2]
[331273664,1720170355224,-300.0,0.00016254,2]
[331273666,1720170355244,-244.2076555,0.00016255,2]
[331273720,1720170430525,-911.72624745,0.00016154,2]
[331273721,1720170430895,-300.0,0.00016253,2]
[331273722,1720170431288,-32.76055336,0.00016253,2]
[331273727,1720170442223,-267.23944664,0.00016253,2]
[331273728,1720170442245,-3335.11565693,0.00016254,2]
[331273732,1720170454105,-1280.81938598,0.00016254,2]
[331273821,1720170637346,-270.0,0.00014999,2]
[331274196,1720170642580,-3131.42398666,0.00014999,2]
[331274198,1720170642590,-167.44337796,0.00014999,2]
[331274200,1720170642599,-2126.43441341,0.00014999,2]
[331274202,1720170642608,-227.899792,0.00015759,2]
[331274204,1720170642619,-1799.55133928,0.00016154,2]
[331274206,1720170642635,-555.80119424,0.00016245,2]
[331274208,1720170642644,-300.0,0.00016253,2]
[331274210,1720170642654,-239.0,0.00016253,2]
[331274212,1720170642664,-254.11560907,0.00016253,2]
[331274214,1720170642674,-500.0,0.00016253,2]
[331274216,1720170642685,-500.0,0.00016253,2]
[331274219,1720170642695,-52599.01208067,0.00016254,2]
[331274221,1720170642706,-598.66189585,0.00016254,2]
[331274222,1720170642715,-266.10751468,0.00016254,2]
[331274224,1720170642724,-335.88438281,0.00016254,2]
[331274226,1720170642734,-17003.59800872,0.00016255,2]
[331274228,1720170642745,-35394.16373939,0.00016255,2]
[331274405,1720170648289,-219.65813389,0.00016253,2]
[331274439,1720170648630,-280.34186611,0.00016253,2]
[331274442,1720170648640,-500.0,0.00016253,2]
[331274445,1720170648652,-500.0,0.00016253,2]
[331274447,1720170648663,-500.0,0.00016253,2]
[331274450,1720170648673,-252.3700697,0.00016253,2]
[331274452,1720170648684,-3677.28806419,0.00016255,2]
[331274454,1720170648696,-3154.85678274,0.00016255,2]
[331274456,1720170648706,-2250.14321726,0.00016255,2]
[331274574,1720171028599,1235.99551094,9.999e-05,2]
[331274826,1720171096463,-200.0,0.00024658,15]
[331274828,1720171096493,-1664.83534778,0.0002994,20]
[331274830,1720171096521,-152.18151323,0.0003003,7]
[331274831,1720171096551,-897.72395268,0.00030239,22]
[331274833,1720171096581,-152.18151323,0.00030508,7]
[331274834,1720171096609,-159.49645922,0.00031014,7]
[331274836,1720171096639,-152.18151323,0.000333,7]
[331274840,1720171096809,-1000.0,0.00034,34]
[331274841,1720171096849,-152.18151323,0.00034571,7]
[331274843,1720171096892,-152.18151323,0.00034762,7]
[331274845,1720171097098,-153.17115845,0.00036494,7]
[331274847,1720171097816,-548.83384771,0.00036732,14]
[331274849,1720171098323,-1000.0,0.00039,39]
[331274851,1720171098795,-150.13997893,0.00039287,7]
[331274853,1720171099352,-154.83742071,0.00039393,10]
[331274855,1720171099382,-151.0,0.0004,120]
[331274856,1720171099416,-151.0,0.0004,120]
[331274858,1720171099446,-151.28032846,0.00040353,30]
[331274859,1720171099474,-152.18151323,0.00040809,30]
[331274860,1720171099502,-151.0,0.00041863,120]
[331274862,1720171099529,-1971.53761651,0.00042999,30]
[331274863,1720171099558,-152.18151323,0.00043093,30]
[331274865,1720171099590,-151.0,0.00043123,120]
[331274867,1720171099619,-151.0,0.00043726,120]
[331274868,1720171099648,-152.18151323,0.00043795,30]
[331274870,1720171099677,-1000.0,0.00044,44]
[331274871,1720171099708,-10000.0,0.00045,45]
[331274873,1720171099738,-156.25095608,0.00045149,30]
[331274874,1720171100329,-151.0,0.00045589,120]
[331274875,1720171100698,-10000.0,0.00046,46]
[331274877,1720171101348,-151.0,0.00046247,120]
[331274878,1720171101923,-153.17115845,0.00046671,30]
[331274880,1720171102812,-10000.0,0.00047,47]
[331274882,1720171103200,-167.0,0.00047,90]
[331274883,1720171103452,-151.0,0.00047452,120]
[331274885,1720171103481,-1000.0,0.00047945,120]
[331274886,1720171103516,-10000.0,0.00048,48]
[331274888,1720171103545,-871.92,0.00048,120]
[331274889,1720171103573,-1902.06,0.00048,120]
[331274891,1720171103604,-1000.0,0.00048493,120]
[331274892,1720171103634,-152.18151323,0.00048543,30]
[331274894,1720171103663,-20000.0,0.000488,120]
[331274895,1720171103694,-167.0,0.00048904,90]
[331274897,1720171103727,-10000.0,0.00049,49]
[331274898,1720171103757,-1000.0,0.00049,49]
[331274900,1720171103790,-1000.0,0.00049041,120]
[331274902,1720171103819,-12289.83,0.000492,120]
[331274903,1720171103857,-153.0,0.00049288,120]
[331274905,1720171103890,-153.0,0.00049288,120]
[331274906,1720171103921,-153.0,0.00049288,120]
[331274908,1720171103951,-153.0,0.00049288,120]
[331274910,1720171104462,-153.0,0.00049288,120]
[331274912,1720171105119,-153.0,0.00049288,120]
[331274913,1720171105595,-153.0,0.00049288,120]
[331274915,1720171105965,-153.0,0.00049288,120]
[331274917,1720171105997,-153.0,0.00049288,120]
[331274918,1720171106045,-153.0,0.00049288,120]
[331274920,1720171106087,-153.0,0.00049288,120]
[331274922,1720171106121,-153.0,0.00049288,120]
[331274924,1720171106343,-153.0,0.00049288,120]
[331274926,1720171106378,-153.0,0.00049288,120]
[331274927,1720171106407,-153.0,0.00049288,120]
[331274929,1720171106437,-153.0,0.00049288,120]
[331274931,1720171106591,-153.0,0.00049288,120]
[331274932,1720171106622,-153.0,0.00049288,120]
[331274934,1720171106653,-153.0,0.00049288,120]
[331274936,1720171106854,-153.0,0.00049288,120]
[331274937,1720171107027,-153.0,0.00049288,120]
[331274939,1720171107057,-153.0,0.00049288,120]
[331274940,1720171107088,-153.0,0.00049288,120]
[331274942,1720171107117,-153.0,0.00049288,120]
[331274943,1720171107148,-153.0,0.00049288,120]
[331274945,1720171107178,-153.0,0.00049288,120]
[331274947,1720171107207,-154.0,0.00049288,120]
[331274948,1720171107236,-154.0,0.00049288,120]
[331274950,1720171107420,-154.0,0.00049288,120]
[331274952,1720171107902,-154.0,0.00049288,120]
[331274955,1720171108191,-154.0,0.00049288,120]
[331274956,1720171108453,-154.0,0.00049288,120]
[331274957,1720171108674,-154.0,0.00049288,120]
[331274959,1720171108866,-154.0,0.00049288,120]
[331274961,1720171109062,-154.0,0.00049288,120]